[Event "MČR v bleskovém šachu družstev 2019"]
[Site "Teplice, Czech Republic"]
[Date "2019.09.14"]
[Round "5.13"]
[White "Sykora, Ondrej"]
[Black "Krejci, Jan"]
[Result "0-1"]
[TimeControl "3 mim. + 2 s"]
[BlackTitle "GM"]
[BlackFideId "322156"]
[WhiteElo "2122"]
[BlackElo "2527"]

1. e4 {[%clk 00:03:03]} {[%emt 00:00:01]} e5 {[%clk 00:03:03]} {[%emt
00:00:04]} 2. Nf3 {[%clk 00:03:03]} {[%emt 00:00:01]} Nc6 {[%clk 00:03:04]}
{[%emt 00:00:01]} 3. Bc4 {[%clk 00:03:03]} {[%emt 00:00:02]} Bc5 {[%clk
00:03:05]} {[%emt 00:00:02]} 4. O-O {[%clk 00:03:02]} {[%emt 00:00:02]} Nf6
{[%clk 00:03:06]} 5. d4 {[%clk 00:03:03]} Bxd4 {[%clk 00:03:01]} {[%emt
00:00:08]} 6. Nxd4 {[%clk 00:03:04]} Nxd4 {[%clk 00:03:01]} {[%emt 00:00:02]} 7.
Bg5 {[%clk 00:03:05]} {[%emt 00:00:01]} d6 {[%clk 00:02:55]} {[%emt 00:00:08]}
8. f4 {[%clk 00:03:04]} {[%emt 00:00:02]} Be6 {[%clk 00:02:54]} {[%emt
00:00:04]} 9. fxe5 {[%clk 00:02:19]} {[%emt 00:00:47]} dxe5 {[%clk 00:02:52]}
{[%emt 00:00:04]} 10. Bxe6 {[%clk 00:02:17]} {[%emt 00:00:04]} Nxe6 {[%clk
00:02:52]} {[%emt 00:00:02]} 11. Bxf6 {[%clk 00:02:15]} {[%emt 00:00:04]} Qxd1
{[%clk 00:02:43]} {[%emt 00:00:12]} 12. Rxd1 {[%clk 00:02:16]} {[%emt
00:00:01]} gxf6 {[%clk 00:02:44]} 13. Nc3 {[%clk 00:02:15]} {[%emt 00:00:02]}
c6 {[%clk 00:02:45]} {[%emt 00:00:01]} 14. Ne2 {[%clk 00:02:08]} {[%emt
00:00:10]} Ke7 {[%clk 00:02:24]} {[%emt 00:00:23]} 15. Ng3 {[%clk 00:02:08]}
{[%emt 00:00:01]} Ng7 {[%clk 00:02:26]} {[%emt 00:00:01]} 16. Kf2 {[%clk
00:02:01]} {[%emt 00:00:09]} Rhd8 {[%clk 00:02:26]} {[%emt 00:00:02]} 17. Ke2
{[%clk 00:02:00]} {[%emt 00:00:02]} Rxd1 {[%clk 00:02:20]} {[%emt 00:00:09]} 18.
Rxd1 {[%clk 00:02:01]} Rd8 {[%clk 00:02:21]} 19. Rf1 {[%clk 00:02:01]} {[%emt
00:00:02]} Ke6 {[%clk 00:02:10]} {[%emt 00:00:13]} 20. c3 {[%clk 00:02:02]}
{[%emt 00:00:02]} Ne8 {[%clk 00:01:55]} {[%emt 00:00:17]} 21. Ke3 {[%clk
00:01:53]} {[%emt 00:00:10]} Nd6 {[%clk 00:01:45]} {[%emt 00:00:12]} 22. b3
{[%clk 00:01:54]} Rg8 {[%clk 00:01:43]} {[%emt 00:00:04]} 23. Rf2 {[%clk
00:01:55]} {[%emt 00:00:02]} Rg5 {[%clk 00:01:43]} {[%emt 00:00:02]} 24. Nf1
{[%clk 00:01:06]} {[%emt 00:00:51]} f5 {[%clk 00:01:41]} {[%emt 00:00:05]} 25.
Nd2 {[%clk 00:01:04]} {[%emt 00:00:03]} fxe4 {[%clk 00:01:28]} {[%emt
00:00:15]} 26. Nxe4 {[%clk 00:01:01]} {[%emt 00:00:04]} Nxe4 {[%clk 00:01:29]}
27. Kxe4 {[%clk 00:01:02]} {[%emt 00:00:01]} f5+ {[%clk 00:01:30]} 28. Ke3
{[%clk 00:01:03]} {[%emt 00:00:02]} Rg7 {[%clk 00:01:31]} {[%emt 00:00:01]} 29.
g3 {[%clk 00:01:02]} {[%emt 00:00:03]} Rd7 {[%clk 00:01:32]} {[%emt 00:00:02]}
30. Ke2 {[%clk 00:01:03]} e4 {[%clk 00:01:29]} {[%emt 00:00:04]} 31. Rf4 {[%clk
00:01:05]} Ke5 {[%clk 00:01:24]} {[%emt 00:00:08]} 32. Rh4 {[%emt 00:00:02]} a5
{[%clk 00:01:16]} {[%emt 00:00:08]} 33. Rh5 {[%clk 00:01:06]} {[%emt 00:00:02]}
Kf6 {[%clk 00:01:14]} {[%emt 00:00:05]} 34. c4 {[%clk 00:01:02]} {[%emt
00:00:06]} Kg6 {[%clk 00:01:14]} {[%emt 00:00:02]} 35. Rh4 {[%clk 00:00:57]}
{[%emt 00:00:06]} a4 {[%clk 00:01:15]} {[%emt 00:00:02]} 36. Rf4 {[%clk
00:00:50]} {[%emt 00:00:09]} h5 {[%clk 00:01:04]} {[%emt 00:00:13]} 37. Rf1
{[%clk 00:00:31]} {[%emt 00:00:20]} Rd3 {[%clk 00:01:01]} {[%emt 00:00:05]} 38.
bxa4 {[%clk 00:00:31]} {[%emt 00:00:03]} Ra3 {[%clk 00:01:01]} {[%emt
00:00:02]} 39. Rb1 {[%clk 00:00:32]} Rxa2+ {[%emt 00:00:02]} 40. Ke3 {[%clk
00:00:33]} Rxa4 {[%clk 00:01:00]} {[%emt 00:00:04]} 41. Rxb7 {[%clk 00:00:34]}
{[%emt 00:00:02]} Rxc4 {[%clk 00:01:01]} 42. Rd7 {[%clk 00:00:33]} {[%emt
00:00:03]} Kg5 {[%clk 00:00:50]} {[%emt 00:00:12]} 43. Rg7+ {[%clk 00:00:33]}
{[%emt 00:00:03]} Kf6 {[%clk 00:00:51]} 44. Rh7 {[%clk 00:00:34]} Rc3+ {[%clk
00:00:52]} {[%emt 00:00:01]} 45. Ke2 {[%clk 00:00:35]} {[%emt 00:00:02]} Rc2+
{[%clk 00:00:53]} {[%emt 00:00:01]} 46. Ke3 {[%clk 00:00:32]} {[%emt 00:00:04]}
Rxh2 {[%clk 00:00:50]} {[%emt 00:00:05]} 47. Rh6+ {[%clk 00:00:33]} {[%emt
00:00:01]} Kg5 {[%clk 00:00:51]} 48. Rxc6 {[%clk 00:00:34]} {[%emt 00:00:02]}
Rg2 {[%clk 00:00:51]} {[%emt 00:00:01]} 49. Rc8 {[%clk 00:00:28]} {[%emt
00:00:08]} Rxg3+ {[%clk 00:00:52]} {[%emt 00:00:01]} 50. Kf2 {[%clk 00:00:29]}
Rf3+ {[%clk 00:00:53]} {[%emt 00:00:02]} 51. Kg2 {[%clk 00:00:30]} h4 {[%clk
00:00:53]} {[%emt 00:00:02]} 52. Rg8+ {[%clk 00:00:30]} {[%emt 00:00:02]} Kf4
{[%clk 00:00:54]} 53. Rh8 {[%clk 00:00:31]} {[%emt 00:00:02]} h3+ {[%clk
00:00:55]} {[%emt 00:00:01]} 54. Kh2 {[%clk 00:00:32]} e3 {[%clk 00:00:55]}
{[%emt 00:00:03]} 55. Re8 {[%clk 00:00:32]} {[%emt 00:00:02]} Kg5 {[%clk
00:00:43]} {[%emt 00:00:14]} 56. Rg8+ {[%clk 00:00:29]} {[%emt 00:00:05]} Kf6
{[%clk 00:00:44]} {[%emt 00:00:01]} 57. Rf8+ {[%clk 00:00:30]} {[%emt
00:00:01]} Ke7 {[%clk 00:00:45]} 58. Ra8 {[%clk 00:00:24]} {[%emt 00:00:07]} e2
{[%clk 00:00:43]} {[%emt 00:00:04]} 59. Ra7+ {[%clk 00:00:07]} {[%emt
00:00:20]} Kf6 {[%clk 00:00:44]} 60. Ra6+ {[%clk 00:00:07]} {[%emt 00:00:02]}
Kg5 {[%clk 00:00:44]} {[%emt 00:00:01]} 61. Re6 {[%clk 00:00:09]} Rf2+ {[%clk
00:00:38]} {[%emt 00:00:08]} 62. Kxh3 {[%clk 00:00:10]} f4 {[%clk 00:00:36]}
{[%emt 00:00:04]} 63. Re5+ {[%clk 00:00:08]} {[%emt 00:00:04]} Kf6 {[%clk
00:00:37]} {[%emt 00:00:01]} 64. Re4 {[%clk 00:00:05]} {[%emt 00:00:05]} Rf3+
{[%clk 00:00:28]} {[%emt 00:00:11]} 65. Kg2 {[%clk 00:00:05]} {[%emt 00:00:02]}
Re3 {[%emt 00:00:03]} 66. Rxf4+ {[%clk 00:00:05]} Kg5 {[%clk 00:00:29]} 67. Rf8
{[%clk 00:00:04]} {[%emt 00:00:03]} e1=Q {[%clk 00:00:28]} {[%emt 00:00:03]} 68.
Rg8+ {[%clk 00:00:04]} {[%emt 00:00:01]} Kf6 {[%clk 00:00:29]} 69. Rf8+ {[%clk
00:00:05]} {[%emt 00:00:02]} Kg7 {[%clk 00:00:31]} 70. Rf2 {[%clk 00:00:06]}
{[%emt 00:00:01]} Re2 {[%clk 00:00:31]} {[%emt 00:00:01]} 71. Rxe2 {[%clk
00:00:06]} {[%emt 00:00:02]} Qxe2+ {[%clk 00:00:33]} 0-1

[Event "MČR v bleskovém šachu družstev 2019"]
[Site "Teplice, Czech Republic"]
[Date "2019.09.14"]
[Round "5.15"]
[White "Zima, Jan"]
[Black "Strasil, Pavel"]
[Result "1/2-1/2"]
[TimeControl "3 mim. + 2 s"]
[BlackFideId "308013"]
[WhiteElo "2048"]
[BlackElo "2026"]

1. e4 {[%emt 00:02:35]} e6 2. d4 d5 3. e5 c5 {[%emt 00:00:01]} 4. c3 {[%emt
00:00:01]} Nc6 {[%emt 00:00:04]} 5. Nf3 Bd7 6. Be2 f6 {[%emt 00:00:05]} 7. O-O
{[%emt 00:00:04]} Qb6 {[%emt 00:00:05]} 8. Na3 {[%emt 00:00:41]} Rc8 {[%emt
00:00:06]} 9. Nc2 {[%emt 00:00:07]} cxd4 {[%emt 00:00:04]} 10. cxd4 Nb4 {[%emt
00:00:01]} 11. Nxb4 {[%emt 00:00:05]} Bxb4 {[%emt 00:00:07]} 12. a3 {[%emt
00:00:07]} Be7 {[%emt 00:00:02]} 13. b4 {[%emt 00:00:25]} Bb5 {[%emt 00:00:04]}
14. Be3 {[%emt 00:00:10]} f5 {[%emt 00:00:16]} 15. Bxb5+ {[%emt 00:00:22]} Qxb5
{[%emt 00:00:02]} 16. Qd2 {[%emt 00:00:11]} Kd7 {[%emt 00:00:08]} 17. Rac1
{[%emt 00:00:06]} Rxc1 {[%emt 00:00:10]} 18. Rxc1 Qb6 {[%emt 00:00:05]} 19. h4
{[%emt 00:00:08]} h5 {[%emt 00:00:10]} 20. g3 {[%emt 00:00:20]} Nh6 {[%emt
00:00:05]} 21. Bxh6 {[%emt 00:00:03]} Rxh6 {[%emt 00:00:03]} 22. Qc3 {[%emt
00:00:05]} Rh8 23. Qc2 {[%emt 00:00:20]} a6 {[%emt 00:00:09]} 24. Qa4+ {[%emt
00:00:05]} Qb5 {[%emt 00:00:01]} 25. Qc2 Qb6 {[%emt 00:00:05]} 26. Qa4+ {[%emt
00:00:03]} Qb5 {[%emt 00:00:02]} 27. Qc2 {[%emt 00:00:01]} Qb6 {[%emt
00:00:20]} 28. Qa4+ Qb5 1/2-1/2

[Event "MČR v bleskovém šachu družstev 2019"]
[Site "Teplice, Czech Republic"]
[Date "2019.09.14"]
[Round "5.16"]
[White "Krejci, Jan"]
[Black "Broucek, Tomas"]
[Result "1/2-1/2"]
[TimeControl "3 mim. + 2 s"]
[WhiteFideId "316873"]
[WhiteElo "2048"]
[BlackElo "2044"]

1. Nf3 {[%clk 00:03:02]} {[%emt 00:00:01]} d6 {[%clk 00:03:03]} {[%emt
00:00:02]} 2. d4 {[%clk 00:03:03]} {[%emt 00:00:02]} Nd7 {[%clk 00:03:03]} 3.
c4 {[%clk 00:03:04]} {[%emt 00:00:02]} e5 {[%clk 00:03:02]} {[%emt 00:00:03]} 4.
Nc3 {[%clk 00:03:04]} {[%emt 00:00:02]} Ngf6 {[%clk 00:03:01]} {[%emt
00:00:03]} 5. e4 {[%clk 00:03:04]} {[%emt 00:00:02]} exd4 {[%clk 00:02:52]}
{[%emt 00:00:11]} 6. Nxd4 {[%clk 00:03:04]} {[%emt 00:00:02]} Nc5 {[%clk
00:02:52]} {[%emt 00:00:03]} 7. Qc2 {[%clk 00:02:57]} {[%emt 00:00:08]} a5
{[%clk 00:02:52]} {[%emt 00:00:02]} 8. g3 {[%clk 00:02:56]} {[%emt 00:00:05]}
Be7 {[%clk 00:02:49]} {[%emt 00:00:04]} 9. Bg2 {[%clk 00:02:56]} {[%emt
00:00:02]} O-O {[%clk 00:02:48]} {[%emt 00:00:03]} 10. O-O {[%clk 00:02:56]}
{[%emt 00:00:02]} c6 {[%clk 00:02:47]} {[%emt 00:00:03]} 11. Be3 {[%clk
00:02:49]} {[%emt 00:00:09]} Qc7 {[%clk 00:02:41]} {[%emt 00:00:08]} 12. Rac1
{[%clk 00:02:47]} {[%emt 00:00:04]} Be6 {[%clk 00:02:18]} {[%emt 00:00:25]} 13.
b3 {[%clk 00:02:47]} {[%emt 00:00:01]} Rad8 {[%clk 00:02:16]} {[%emt 00:00:04]}
14. a3 {[%clk 00:02:47]} {[%emt 00:00:02]} h6 {[%clk 00:02:10]} {[%emt
00:00:08]} 15. b4 {[%clk 00:02:46]} {[%emt 00:00:02]} axb4 {[%clk 00:02:03]}
{[%emt 00:00:09]} 16. axb4 {[%clk 00:02:46]} {[%emt 00:00:02]} Na6 {[%clk
00:01:58]} {[%emt 00:00:06]} 17. b5 {[%clk 00:02:33]} {[%emt 00:00:15]} Nc5
{[%clk 00:01:58]} {[%emt 00:00:03]} 18. bxc6 {[%clk 00:02:29]} {[%emt
00:00:07]} bxc6 {[%clk 00:01:58]} {[%emt 00:00:02]} 19. Nxe6 {[%clk 00:02:27]}
{[%emt 00:00:04]} Nxe6 {[%clk 00:01:55]} {[%emt 00:00:06]} 20. Ra1 {[%clk
00:02:20]} {[%emt 00:00:08]} Ra8 {[%clk 00:01:53]} {[%emt 00:00:04]} 21. Rfb1
{[%clk 00:02:05]} {[%emt 00:00:16]} Ng4 {[%clk 00:01:38]} {[%emt 00:00:18]} 22.
Bd2 {[%clk 00:01:57]} {[%emt 00:00:08]} Bf6 {[%clk 00:01:26]} {[%emt 00:00:16]}
23. Rxa8 {[%clk 00:01:56]} {[%emt 00:00:03]} Rxa8 {[%clk 00:01:28]} 24. Ne2
{[%clk 00:01:50]} {[%emt 00:00:07]} Rb8 {[%clk 00:01:21]} {[%emt 00:00:10]} 25.
h3 {[%clk 00:01:46]} {[%emt 00:00:07]} Ne5 {[%clk 00:01:21]} {[%emt 00:00:01]}
26. Rxb8+ {[%clk 00:01:41]} {[%emt 00:00:07]} Qxb8 {[%clk 00:01:22]} 27. f4
{[%clk 00:01:35]} {[%emt 00:00:07]} Qb6+ {[%clk 00:01:10]} {[%emt 00:00:13]} 28.
Kh2 {[%clk 00:01:35]} {[%emt 00:00:03]} Nd7 {[%clk 00:00:54]} {[%emt 00:00:18]}
29. Qd3 {[%clk 00:01:36]} {[%emt 00:00:01]} Nd4 {[%clk 00:00:34]} {[%emt
00:00:22]} 30. Be3 {[%clk 00:01:30]} {[%emt 00:00:08]} c5 {[%clk 00:00:33]}
{[%emt 00:00:03]} 31. Nxd4 {[%clk 00:01:10]} {[%emt 00:00:22]} Bxd4 {[%clk
00:00:30]} {[%emt 00:00:04]} 32. Bd2 {[%clk 00:01:05]} {[%emt 00:00:07]} Qb2
{[%clk 00:00:22]} {[%emt 00:00:10]} 33. h4 {[%clk 00:01:05]} {[%emt 00:00:03]}
Nf6 {[%clk 00:00:17]} {[%emt 00:00:07]} 34. Kh3 {[%clk 00:01:04]} {[%emt
00:00:03]} h5 {[%clk 00:00:18]} {[%emt 00:00:02]} 35. Bf3 {[%clk 00:01:01]}
{[%emt 00:00:03]} g6 {[%clk 00:00:14]} {[%emt 00:00:07]} 36. f5 {[%clk
00:01:00]} {[%emt 00:00:04]} Kg7 {[%clk 00:00:05]} {[%emt 00:00:11]} 37. fxg6
{[%clk 00:00:52]} {[%emt 00:00:10]} fxg6 {[%clk 00:00:06]} 38. Bg5 {[%clk
00:00:51]} {[%emt 00:00:03]} Qa1 {[%clk 00:00:07]} {[%emt 00:00:01]} 39. Qe2
{[%clk 00:00:49]} {[%emt 00:00:03]} Qb2 {[%clk 00:00:06]} {[%emt 00:00:03]} 40.
Qxb2 {[%clk 00:00:50]} {[%emt 00:00:02]} Bxb2 {[%clk 00:00:08]} 41. Bf4 {[%clk
00:00:49]} {[%emt 00:00:02]} Ne8 {[%clk 00:00:08]} {[%emt 00:00:02]} 42. Bd1
{[%clk 00:00:49]} {[%emt 00:00:02]} Kf6 {[%clk 00:00:08]} {[%emt 00:00:02]} 43.
Ba4 {[%clk 00:00:50]} {[%emt 00:00:01]} Ke7 {[%clk 00:00:07]} {[%emt 00:00:03]}
44. Bxe8 {[%clk 00:00:48]} {[%emt 00:00:04]} Kxe8 {[%clk 00:00:08]} 45. Bxd6
{[%clk 00:00:49]} {[%emt 00:00:02]} Bd4 {[%clk 00:00:09]} 46. g4 {[%clk
00:00:49]} {[%emt 00:00:02]} Kf7 {[%clk 00:00:09]} {[%emt 00:00:02]} 47. gxh5
{[%clk 00:00:50]} {[%emt 00:00:01]} gxh5 {[%clk 00:00:10]} 48. Kg3 {[%clk
00:00:51]} Kg6 {[%clk 00:00:11]} 49. Kf4 {[%clk 00:00:52]} Bc3 {[%clk
00:00:10]} {[%emt 00:00:03]} 50. e5 {[%clk 00:00:53]} Be1 {[%clk 00:00:07]}
{[%emt 00:00:04]} 51. Be7 {[%clk 00:00:54]} {[%emt 00:00:03]} Bf2 {[%clk
00:00:07]} {[%emt 00:00:02]} 52. Ke4 {[%clk 00:00:54]} {[%emt 00:00:02]} Kf7
{[%clk 00:00:08]} {[%emt 00:00:01]} 53. Bg5 {[%clk 00:00:54]} {[%emt 00:00:01]}
Ke6 {[%clk 00:00:09]} {[%emt 00:00:01]} 54. Kf3 {[%clk 00:00:55]} Bd4 {[%clk
00:00:10]} {[%emt 00:00:02]} 55. Ke4 {[%clk 00:00:56]} {[%emt 00:00:01]} Bxe5
{[%clk 00:00:11]} 56. Bh6 {[%clk 00:00:57]} {[%emt 00:00:01]} Bd4 {[%clk
00:00:11]} 57. Bf8 {[%clk 00:00:58]} {[%emt 00:00:01]} Bg1 {[%clk 00:00:11]}
{[%emt 00:00:02]} 58. Kf4 {[%clk 00:00:59]} {[%emt 00:00:02]} Kf6 {[%clk
00:00:11]} {[%emt 00:00:02]} 59. Bd6 {[%clk 00:00:57]} {[%emt 00:00:03]} Bd4
{[%clk 00:00:11]} {[%emt 00:00:03]} 60. Bc7 {[%clk 00:00:56]} {[%emt 00:00:03]}
Ke6 {[%clk 00:00:10]} {[%emt 00:00:03]} 61. Kg5 {[%clk 00:00:57]} {[%emt
00:00:01]} Kd7 {[%clk 00:00:04]} {[%emt 00:00:08]} 62. Bg3 {[%clk 00:00:56]}
{[%emt 00:01:00]} Ke6 {[%clk 00:00:06]} 63. Kxh5 {[%clk 00:00:57]} {[%emt
00:00:01]} Kf5 {[%clk 00:00:06]} {[%emt 00:00:01]} 64. Be1 {[%clk 00:00:56]}
{[%emt 00:00:02]} Ke4 {[%clk 00:00:08]} {[%emt 00:00:01]} 65. Kg6 Kd3 66. h5
{[%clk 00:00:58]} {[%emt 00:00:01]} Kxc4 {[%clk 00:00:10]} {[%emt 00:00:02]} 67.
h6 {[%clk 00:00:59]} Kd3 {[%clk 00:00:11]} {[%emt 00:00:02]} 68. Bh4 {[%clk
00:01:00]} c4 {[%emt 00:00:39]} 1/2-1/2

[Event "MČR v bleskovém šachu družstev 2019"]
[Site "Teplice, Czech Republic"]
[Date "2019.09.14"]
[Round "5.17"]
[White "Brejnik, Gustav"]
[Black "Soural, Jan"]
[Result "0-1"]
[TimeControl "3 mim. + 2 s"]
[WhiteFideId "362662"]
[BlackFideId "311928"]
[WhiteElo "2137"]
[BlackElo "2107"]

1. d4 {[%clk 00:03:03]} Nf6 {[%clk 00:03:03]} 2. c4 {[%clk 00:03:05]} g6 {[%clk
00:03:05]} {[%emt 00:00:02]} 3. Nc3 {[%clk 00:03:06]} d5 {[%clk 00:03:05]}
{[%emt 00:00:02]} 4. cxd5 {[%clk 00:03:06]} {[%emt 00:00:02]} Nxd5 {[%clk
00:03:06]} {[%emt 00:00:01]} 5. e4 {[%clk 00:03:07]} Nxc3 {[%clk 00:03:06]}
{[%emt 00:00:03]} 6. bxc3 {[%clk 00:03:08]} {[%emt 00:00:01]} Bg7 {[%clk
00:03:07]} 7. Nf3 {[%clk 00:03:09]} {[%emt 00:00:02]} c5 {[%clk 00:03:08]}
{[%emt 00:00:01]} 8. Be3 {[%clk 00:03:00]} {[%emt 00:00:09]} O-O {[%clk
00:03:04]} {[%emt 00:00:07]} 9. Qd2 {[%clk 00:02:59]} {[%emt 00:00:04]} cxd4
{[%clk 00:03:01]} {[%emt 00:00:05]} 10. cxd4 {[%clk 00:02:59]} {[%emt
00:00:02]} Nc6 {[%clk 00:03:01]} 11. Bc4 {[%clk 00:02:41]} {[%emt 00:00:20]}
Bg4 {[%clk 00:02:52]} {[%emt 00:00:11]} 12. Rd1 {[%clk 00:02:33]} {[%emt
00:00:10]} Bxf3 {[%clk 00:02:45]} {[%emt 00:00:10]} 13. gxf3 {[%clk 00:02:34]}
{[%emt 00:00:01]} Qa5 {[%clk 00:02:46]} 14. O-O {[%clk 00:02:13]} {[%emt
00:00:23]} Qxd2 {[%clk 00:02:42]} {[%emt 00:00:06]} 15. Rxd2 {[%clk 00:02:15]}
Rfc8 {[%clk 00:02:31]} {[%emt 00:00:14]} 16. Be2 {[%clk 00:01:57]} {[%emt
00:00:20]} e5 {[%clk 00:02:16]} {[%emt 00:00:17]} 17. d5 {[%clk 00:01:57]}
{[%emt 00:00:02]} Nd4 {[%clk 00:02:17]} {[%emt 00:00:01]} 18. Bxd4 {[%emt
00:00:12]} exd4 19. Rb1 {[%clk 00:01:46]} b6 {[%clk 00:02:11]} {[%emt
00:00:10]} 20. Bb5 {[%clk 00:01:39]} {[%emt 00:00:09]} Rc3 {[%clk 00:02:10]}
{[%emt 00:00:03]} 21. Kg2 {[%clk 00:01:37]} {[%emt 00:00:04]} Rd8 {[%clk
00:02:03]} {[%emt 00:00:09]} 22. Rb3 {[%clk 00:01:22]} {[%emt 00:00:18]} g5
{[%clk 00:01:38]} {[%emt 00:00:27]} 23. Rxc3 {[%clk 00:01:00]} {[%emt
00:00:24]} dxc3 {[%clk 00:01:39]} 24. Rd3 {[%clk 00:01:00]} {[%emt 00:00:01]}
c2 {[%clk 00:01:34]} {[%emt 00:00:08]} 25. Rc3 {[%clk 00:01:00]} {[%emt
00:00:02]} Bxc3 {[%clk 00:01:34]} {[%emt 00:00:01]} 0-1

[Event "MČR v bleskovém šachu družstev 2019"]
[Site "Teplice, Czech Republic"]
[Date "2019.09.14"]
[Round "5.18"]
[White "Vokoun, Jan"]
[Black "Hula, Lukas"]
[Result "1/2-1/2"]
[TimeControl "3 mim. + 2 s"]
[WhiteTitle "FM"]
[WhiteFideId "301647"]
[BlackFideId "319830"]
[WhiteElo "2123"]
[BlackElo "2111"]

1. d4 {[%clk 00:03:03]} d5 {[%clk 00:03:03]} {[%emt 00:00:01]} 2. Nf3 {[%clk
00:03:01]} {[%emt 00:00:04]} c6 {[%clk 00:02:59]} {[%emt 00:00:06]} 3. e3
{[%clk 00:03:01]} {[%emt 00:00:02]} Nf6 {[%clk 00:02:58]} {[%emt 00:00:03]} 4.
Bd3 {[%clk 00:03:01]} {[%emt 00:00:02]} Bg4 {[%clk 00:02:58]} {[%emt 00:00:01]}
5. Nbd2 {[%clk 00:02:59]} {[%emt 00:00:05]} e6 {[%clk 00:02:59]} {[%emt
00:00:01]} 6. h3 {[%clk 00:02:52]} {[%emt 00:00:10]} Bh5 {[%clk 00:02:59]}
{[%emt 00:00:01]} 7. c3 {[%clk 00:02:46]} {[%emt 00:00:08]} Nbd7 {[%clk
00:02:48]} {[%emt 00:00:13]} 8. Qe2 {[%clk 00:02:46]} {[%emt 00:00:02]} Be7
{[%clk 00:02:42]} {[%emt 00:00:09]} 9. e4 {[%clk 00:02:46]} {[%emt 00:00:01]}
dxe4 {[%clk 00:02:42]} {[%emt 00:00:02]} 10. Nxe4 {[%clk 00:02:47]} {[%emt
00:00:01]} Nxe4 {[%clk 00:02:42]} {[%emt 00:00:02]} 11. Bxe4 {[%clk 00:02:42]}
{[%emt 00:00:07]} Nf6 {[%clk 00:02:39]} {[%emt 00:00:06]} 12. Bc2 {[%clk
00:02:31]} {[%emt 00:00:12]} Qd5 {[%clk 00:02:36]} {[%emt 00:00:05]} 13. g4
{[%clk 00:02:26]} {[%emt 00:00:07]} Bg6 {[%clk 00:02:37]} 14. Bb3 {[%clk
00:01:59]} {[%emt 00:00:29]} Qe4 {[%clk 00:02:08]} {[%emt 00:00:32]} 15. Rg1
{[%clk 00:01:53]} {[%emt 00:00:08]} O-O-O {[%clk 00:01:53]} {[%emt 00:00:16]}
16. Ne5 {[%clk 00:01:29]} {[%emt 00:00:26]} c5 {[%clk 00:01:27]} {[%emt
00:00:28]} 17. dxc5 {[%clk 00:00:49]} {[%emt 00:00:42]} Bxc5 {[%clk 00:01:26]}
{[%emt 00:00:03]} 18. Bg5 {[%clk 00:00:50]} Rd6 {[%clk 00:00:46]} {[%emt
00:00:44]} 19. Bxf6 {[%clk 00:00:39]} {[%emt 00:00:13]} Qxe2+ {[%clk 00:00:45]}
{[%emt 00:00:02]} 20. Kxe2 {[%clk 00:00:40]} 1/2-1/2

[Event "MČR v bleskovém šachu družstev 2019"]
[Site "Teplice, Czech Republic"]
[Date "2019.09.14"]
[Round "5.19"]
[White "Hoke, Petr"]
[Black "Postupa, Martin"]
[Result "1-0"]
[TimeControl "3 mim. + 2 s"]
[WhiteFideId "305006"]
[BlackFideId "325210"]
[WhiteElo "1946"]
[BlackElo "1958"]

1. e4 {[%clk 00:03:02]} {[%emt 00:00:01]} e5 {[%clk 00:03:04]} 2. Nf3 {[%clk
00:03:03]} {[%emt 00:00:02]} Nc6 {[%clk 00:03:05]} 3. d3 {[%clk 00:03:04]} Be7
{[%clk 00:03:06]} {[%emt 00:00:01]} 4. Be2 {[%clk 00:03:05]} Nf6 {[%clk
00:03:07]} 5. O-O {[%clk 00:03:06]} {[%emt 00:00:01]} O-O {[%clk 00:03:08]}
{[%emt 00:00:02]} 6. c3 {[%clk 00:03:07]} {[%emt 00:00:01]} d5 {[%clk
00:03:07]} {[%emt 00:00:03]} 7. Nbd2 {[%clk 00:03:08]} h6 {[%clk 00:03:04]}
{[%emt 00:00:04]} 8. Qc2 {[%clk 00:03:09]} {[%emt 00:00:02]} d4 {[%clk
00:02:57]} {[%emt 00:00:08]} 9. c4 {[%clk 00:03:04]} {[%emt 00:00:08]} a5
{[%clk 00:02:55]} {[%emt 00:00:04]} 10. a3 {[%clk 00:03:04]} {[%emt 00:00:02]}
b6 {[%clk 00:02:56]} {[%emt 00:00:01]} 11. Re1 {[%clk 00:03:02]} {[%emt
00:00:03]} Bd6 {[%clk 00:02:49]} {[%emt 00:00:09]} 12. Nf1 {[%clk 00:03:03]}
Ng4 {[%clk 00:02:48]} {[%emt 00:00:03]} 13. h3 {[%clk 00:02:59]} {[%emt
00:00:06]} Nf6 {[%clk 00:02:48]} {[%emt 00:00:02]} 14. Ng3 {[%clk 00:03:00]}
Nh7 {[%clk 00:02:49]} {[%emt 00:00:02]} 15. Bd2 {[%clk 00:02:52]} {[%emt
00:00:10]} Ne7 {[%clk 00:02:35]} {[%emt 00:00:16]} 16. b4 {[%clk 00:02:49]}
{[%emt 00:00:05]} axb4 {[%clk 00:02:34]} {[%emt 00:00:04]} 17. axb4 {[%clk
00:02:50]} {[%emt 00:00:01]} Rxa1 {[%clk 00:02:32]} {[%emt 00:00:04]} 18. Rxa1
{[%clk 00:02:51]} {[%emt 00:00:01]} Bb7 {[%clk 00:02:32]} {[%emt 00:00:01]} 19.
c5 {[%clk 00:02:47]} {[%emt 00:00:06]} bxc5 {[%clk 00:02:33]} {[%emt 00:00:01]}
20. bxc5 {[%clk 00:02:48]} f5 {[%clk 00:02:33]} {[%emt 00:00:02]} 21. cxd6
{[%clk 00:02:40]} {[%emt 00:00:10]} cxd6 {[%clk 00:02:34]} {[%emt 00:00:02]} 22.
Qb3+ {[%clk 00:02:34]} {[%emt 00:00:08]} Kh8 {[%clk 00:02:33]} {[%emt
00:00:02]} 23. Qxb7 {[%clk 00:02:35]} {[%emt 00:00:01]} fxe4 {[%clk 00:02:34]}
{[%emt 00:00:02]} 24. Nxe4 {[%clk 00:02:34]} {[%emt 00:00:03]} Nf5 {[%clk
00:02:26]} {[%emt 00:00:10]} 25. Ra7 {[%clk 00:02:28]} {[%emt 00:00:08]} Nf6
{[%clk 00:02:19]} {[%emt 00:00:09]} 26. Bxh6 {[%clk 00:02:14]} {[%emt
00:00:16]} Nxe4 {[%clk 00:02:16]} {[%emt 00:00:04]} 27. Bxg7+ {[%clk 00:02:14]}
{[%emt 00:00:02]} Kg8 {[%clk 00:02:12]} {[%emt 00:00:07]} 28. dxe4 {[%clk
00:02:01]} {[%emt 00:00:15]} Re8 {[%clk 00:02:00]} {[%emt 00:00:14]} 29. exf5
{[%clk 00:01:54]} {[%emt 00:00:09]} 1-0